[Event "The Schackveckan 2023: Göteborg open"]
[Site "Göteborgs schackcentrum, Vegagatan 20, Gothenburg, Sweden"]
[Date "2023.08.11"]
[Round "3.2"]
[White "Olsson, William"]
[Black "Granath, Jonas"]
[Result "1-0"]
[TimeControl "15 minutes + 5 seconds per move from move one (Round 1 - 4) / 90 minutes + 30 seconds per move from move one (Round 5 - 8)"]
[WhiteTitle "FM"]
[WhiteFideId "1741721"]
[BlackFideId "1761013"]
[WhiteElo "2400"]
[BlackElo "1896"]

1. c4 {[%clk 00:15:08]} {[%emt 00:00:02]} e6 {[%clk 00:15:09]} {[%emt
00:00:01]} 2. g3 {[%clk 00:15:11]} {[%emt 00:00:02]} d5 {[%clk 00:15:13]} 3.
Bg2 {[%clk 00:15:15]} dxc4 {[%clk 00:15:15]} {[%emt 00:00:04]} 4. Qa4+ {[%clk
00:15:15]} {[%emt 00:00:05]} Nd7 {[%clk 00:15:10]} {[%emt 00:00:09]} 5. Qxc4
{[%clk 00:15:14]} {[%emt 00:00:06]} a6 {[%clk 00:15:07]} {[%emt 00:00:08]} 6.
Qc2 {[%clk 00:15:15]} {[%emt 00:00:05]} c5 {[%clk 00:14:57]} {[%emt 00:00:14]}
7. Nc3 {[%clk 00:15:12]} {[%emt 00:00:08]} Ngf6 {[%clk 00:14:44]} {[%emt
00:00:17]} 8. a4 {[%clk 00:15:15]} {[%emt 00:00:03]} Be7 {[%clk 00:14:14]}
{[%emt 00:00:35]} 9. Nf3 {[%clk 00:15:09]} {[%emt 00:00:10]} O-O {[%clk
00:14:15]} {[%emt 00:00:05]} 10. O-O {[%clk 00:15:12]} {[%emt 00:00:02]} Qc7
{[%clk 00:13:43]} {[%emt 00:00:37]} 11. a5 {[%clk 00:14:48]} {[%emt 00:00:30]}
Ne5 {[%clk 00:12:52]} {[%emt 00:00:55]} 12. Ng5 {[%clk 00:13:54]} {[%emt
00:00:59]} h6 {[%clk 00:12:22]} {[%emt 00:00:36]} 13. Nge4 {[%clk 00:13:53]}
{[%emt 00:00:05]} Bd7 {[%clk 00:11:35]} {[%emt 00:00:52]} 14. Nxf6+ {[%clk
00:13:56]} {[%emt 00:00:02]} Bxf6 {[%clk 00:11:38]} {[%emt 00:00:03]} 15. Ne4
{[%clk 00:14:00]} Be7 {[%clk 00:11:30]} {[%emt 00:00:13]} 16. d4 {[%clk
00:14:03]} {[%emt 00:00:03]} Bc6 {[%clk 00:11:04]} {[%emt 00:00:31]} 17. dxe5
{[%clk 00:14:06]} {[%emt 00:00:02]} Qxe5 {[%clk 00:10:51]} {[%emt 00:00:18]} 18.
Nc3 {[%clk 00:13:36]} {[%emt 00:00:35]} Bxg2 {[%clk 00:10:51]} {[%emt
00:00:05]} 19. Kxg2 {[%clk 00:13:39]} {[%emt 00:00:02]} Rad8 {[%clk 00:10:42]}
{[%emt 00:00:14]} 20. Bf4 {[%clk 00:13:41]} {[%emt 00:00:03]} Qh5 {[%clk
00:10:40]} {[%emt 00:00:07]} 21. Rfd1 {[%clk 00:13:34]} {[%emt 00:00:10]} g5
{[%clk 00:10:39]} {[%emt 00:00:07]} 22. Bc7 {[%clk 00:13:34]} {[%emt 00:00:05]}
Rc8 {[%clk 00:10:25]} {[%emt 00:00:20]} 23. Bd6 {[%clk 00:13:34]} {[%emt
00:00:04]} Bxd6 {[%clk 00:10:04]} {[%emt 00:00:26]} 24. Rxd6 {[%clk 00:13:37]}
{[%emt 00:00:02]} g4 {[%clk 00:10:06]} {[%emt 00:00:03]} 25. Rad1 {[%clk
00:13:23]} {[%emt 00:00:20]} Rce8 {[%clk 00:09:02]} {[%emt 00:01:10]} 26. Ne4
{[%clk 00:13:23]} {[%emt 00:00:04]} f5 {[%clk 00:08:58]} {[%emt 00:00:09]} 27.
Nxc5 {[%clk 00:13:19]} {[%emt 00:00:08]} f4 {[%clk 00:08:50]} {[%emt 00:00:13]}
28. Nxe6 {[%clk 00:12:20]} {[%emt 00:01:05]} f3+ {[%clk 00:07:30]} {[%emt
00:01:26]} 29. exf3 {[%clk 00:12:22]} {[%emt 00:00:02]} gxf3+ {[%clk 00:07:27]}
{[%emt 00:00:09]} 30. Kg1 {[%clk 00:12:24]} {[%emt 00:00:02]} Rf5 {[%clk
00:06:53]} {[%emt 00:00:39]} 31. Qc3 {[%clk 00:11:27]} {[%emt 00:00:57]} Re5
{[%clk 00:06:17]} {[%emt 00:00:46]} 32. Nf4 {[%clk 00:11:31]} {[%emt 00:00:02]}
Qg4 {[%clk 00:04:51]} {[%emt 00:01:31]} 33. Rg6+ {[%clk 00:11:34]} {[%emt
00:00:02]} 1-0

[Event "The Schackveckan 2023: Göteborg open"]
[Site "Göteborgs schackcentrum, Vegagatan 20, Gothenburg, Sweden"]
[Date "2023.08.11"]
[Round "3.3"]
[White "Bengtsson, Siv"]
[Black "Ustianovich, Nazar"]
[Result "0-1"]
[TimeControl "15 minutes + 5 seconds per move from move one (Round 1 - 4) / 90 minutes + 30 seconds per move from move one (Round 5 - 8)"]
[BlackTitle "FM"]
[WhiteFideId "1701673"]
[BlackFideId "14109778"]
[WhiteElo "2010"]
[BlackElo "2314"]

1. e4 {[%clk 00:15:09]} {[%emt 00:20:13]} c5 {[%clk 00:15:09]} {[%emt
00:00:01]} 2. Nf3 {[%clk 00:15:10]} {[%emt 00:00:05]} g6 {[%clk 00:15:12]}
{[%emt 00:00:01]} 3. d4 {[%clk 00:15:08]} {[%emt 00:00:07]} cxd4 {[%clk
00:15:16]} {[%emt 00:00:01]} 4. Nxd4 {[%clk 00:15:12]} Nc6 {[%clk 00:15:20]}
{[%emt 00:00:01]} 5. Nc3 {[%clk 00:15:03]} {[%emt 00:00:14]} Bg7 {[%clk
00:15:22]} {[%emt 00:00:04]} 6. Be3 {[%clk 00:15:06]} {[%emt 00:00:01]} Nf6
{[%clk 00:15:24]} {[%emt 00:00:03]} 7. Bc4 {[%clk 00:14:38]} {[%emt 00:00:34]}
O-O {[%clk 00:15:10]} {[%emt 00:00:18]} 8. Bb3 {[%clk 00:14:40]} {[%emt
00:00:03]} Re8 {[%clk 00:15:06]} {[%emt 00:00:09]} 9. f3 {[%clk 00:14:03]}
{[%emt 00:00:41]} e6 {[%clk 00:15:07]} {[%emt 00:00:04]} 10. Qd2 {[%clk
00:13:24]} {[%emt 00:00:45]} d5 {[%clk 00:15:11]} {[%emt 00:00:01]} 11. exd5
{[%clk 00:12:39]} {[%emt 00:00:50]} Nxd5 {[%clk 00:15:15]} {[%emt 00:00:01]} 12.
Nxd5 {[%clk 00:12:13]} {[%emt 00:00:31]} Nxd4 {[%clk 00:15:17]} {[%emt
00:00:03]} 13. Nc3 {[%clk 00:09:36]} {[%emt 00:02:42]} Nf5 {[%clk 00:13:42]}
{[%emt 00:01:40]} 14. O-O-O {[%clk 00:08:28]} {[%emt 00:01:13]} Qa5 {[%emt
00:01:35]} 15. Bf2 {[%clk 00:07:17]} {[%emt 00:00:17]} Bh6 {[%clk 00:12:39]}
{[%emt 00:00:37]} 16. f4 {[%clk 00:07:19]} {[%emt 00:00:02]} e5 {[%clk
00:12:42]} {[%emt 00:00:03]} 17. g3 {[%clk 00:06:39]} {[%emt 00:00:46]} exf4
{[%clk 00:12:43]} {[%emt 00:00:03]} 18. gxf4 {[%clk 00:06:42]} {[%emt
00:00:02]} Be6 {[%clk 00:12:43]} {[%emt 00:00:05]} 19. Kb1 {[%clk 00:04:51]}
{[%emt 00:01:56]} Red8 {[%clk 00:11:42]} {[%emt 00:01:06]} 20. Qe2 {[%clk
00:03:23]} {[%emt 00:01:33]} Bxb3 {[%clk 00:11:29]} {[%emt 00:00:18]} 21. axb3
{[%clk 00:03:26]} {[%emt 00:00:02]} Bxf4 {[%clk 00:11:23]} {[%emt 00:00:11]} 22.
Ne4 {[%clk 00:03:20]} {[%emt 00:00:11]} b6 {[%clk 00:08:06]} {[%emt 00:03:22]}
23. Be1 {[%clk 00:02:37]} {[%emt 00:00:48]} Rxd1+ {[%clk 00:07:46]} {[%emt
00:00:25]} 24. Qxd1 {[%clk 00:02:40]} {[%emt 00:00:01]} Qe5 {[%clk 00:07:50]}
{[%emt 00:00:02]} 25. Qd3 {[%clk 00:02:25]} {[%emt 00:00:20]} Re8 {[%clk
00:07:48]} {[%emt 00:00:07]} 26. Ng3 {[%clk 00:02:03]} {[%emt 00:00:27]} Bxg3
{[%clk 00:04:46]} {[%emt 00:03:07]} 27. hxg3 {[%clk 00:01:32]} {[%emt
00:00:36]} Qd4 {[%clk 00:04:22]} {[%emt 00:00:29]} 28. Qxd4 {[%clk 00:01:08]}
{[%emt 00:00:29]} Nxd4 {[%clk 00:04:26]} {[%emt 00:00:01]} 29. g4 {[%clk
00:00:51]} {[%emt 00:00:21]} Re4 {[%clk 00:04:13]} {[%emt 00:00:20]} 30. g5
{[%clk 00:00:50]} {[%emt 00:00:05]} Nf3 {[%clk 00:04:05]} {[%emt 00:00:13]} 31.
Bc3 {[%clk 00:00:37]} {[%emt 00:00:17]} Nxg5 {[%clk 00:02:51]} {[%emt
00:01:20]} 32. Rd1 {[%clk 00:00:41]} {[%emt 00:00:01]} Re8 {[%clk 00:02:55]} 33.
Rd7 {[%clk 00:00:45]} Ra8 {[%clk 00:02:59]} {[%emt 00:00:02]} 34. Kc1 {[%clk
00:00:28]} {[%emt 00:00:21]} h5 {[%clk 00:03:02]} {[%emt 00:00:03]} 35. Kd1
{[%clk 00:00:26]} {[%emt 00:00:06]} Ne6 {[%clk 00:01:42]} {[%emt 00:01:26]} 36.
Ke2 {[%clk 00:00:23]} {[%emt 00:00:08]} Nc5 {[%clk 00:01:45]} {[%emt 00:00:02]}
37. Rc7 {[%clk 00:00:23]} {[%emt 00:00:04]} a5 {[%clk 00:01:37]} {[%emt
00:00:14]} 38. Kf3 {[%clk 00:00:26]} {[%emt 00:00:02]} g5 {[%clk 00:00:41]}
{[%emt 00:01:01]} 39. Bf6 {[%clk 00:00:19]} {[%emt 00:00:12]} Ne6 {[%clk
00:00:26]} {[%emt 00:00:20]} 40. Rb7 {[%clk 00:00:22]} {[%emt 00:00:02]} Kh7
{[%clk 00:00:28]} {[%emt 00:00:04]} 41. Rxb6 {[%clk 00:00:21]} {[%emt
00:00:06]} Kg6 {[%clk 00:00:32]} {[%emt 00:00:01]} 42. Bc3 {[%clk 00:00:23]}
{[%emt 00:00:03]} a4 {[%clk 00:00:28]} {[%emt 00:00:08]} 43. bxa4 {[%clk
00:00:22]} {[%emt 00:00:06]} Rxa4 {[%clk 00:00:33]} {[%emt 00:00:01]} 44. Bd2
{[%clk 00:00:13]} {[%emt 00:00:14]} Rh4 {[%clk 00:00:19]} {[%emt 00:00:18]} 45.
b4 {[%clk 00:00:11]} {[%emt 00:00:06]} Rh2 {[%clk 00:00:23]} {[%emt 00:00:03]}
46. Ke3 {[%clk 00:00:15]} h4 {[%clk 00:00:22]} {[%emt 00:00:06]} 47. b5 {[%emt
00:00:01]} h3 {[%clk 00:00:26]} 48. Bc3 {[%clk 00:00:17]} {[%emt 00:00:07]}
Rxc2 {[%clk 00:00:26]} {[%emt 00:00:05]} 49. Be5 {[%clk 00:00:21]} h2 {[%clk
00:00:26]} {[%emt 00:00:05]} 50. Bxh2 {[%clk 00:00:21]} {[%emt 00:00:03]} Rxh2
{[%clk 00:00:30]} {[%emt 00:00:03]} 51. Rb8 {[%clk 00:00:23]} {[%emt 00:00:03]}
Rb2 {[%clk 00:00:31]} {[%emt 00:00:03]} 52. b6 {[%clk 00:00:27]} {[%emt
00:00:01]} Kf5 {[%clk 00:00:30]} {[%emt 00:00:06]} 0-1

[Event "The Schackveckan 2023: Göteborg open"]
[Site "Göteborgs schackcentrum, Vegagatan 20, Gothenburg, Sweden"]
[Date "2023.08.11"]
[Round "3.4"]
[White "Eriksson, Kristian"]
[Black "Mohammed, Safian Haj"]
[Result "1-0"]
[TimeControl "15 minutes + 5 seconds per move from move one (Round 1 - 4) / 90 minutes + 30 seconds per move from move one (Round 5 - 8)"]
[WhiteFideId "1705172"]
[BlackFideId "1729276"]
[WhiteElo "2057"]
[BlackElo "1862"]

1. e4 {[%clk 00:15:07]} {[%emt 00:00:02]} c5 {[%clk 00:15:08]} {[%emt
00:00:04]} 2. Nf3 {[%clk 00:15:07]} {[%emt 00:00:03]} d6 {[%clk 00:15:01]}
{[%emt 00:00:12]} 3. d4 {[%clk 00:15:09]} {[%emt 00:00:04]} cxd4 {[%clk
00:14:39]} {[%emt 00:00:27]} 4. Nxd4 {[%clk 00:15:10]} {[%emt 00:00:03]} Nf6
{[%clk 00:14:39]} {[%emt 00:00:06]} 5. Nc3 {[%clk 00:15:11]} {[%emt 00:00:03]}
g6 {[%clk 00:14:37]} {[%emt 00:00:07]} 6. Be3 {[%clk 00:15:05]} {[%emt
00:00:11]} Bg7 {[%clk 00:14:39]} {[%emt 00:00:04]} 7. f3 {[%clk 00:15:06]}
{[%emt 00:00:03]} O-O {[%clk 00:14:35]} {[%emt 00:00:09]} 8. Bc4 {[%clk
00:14:58]} {[%emt 00:00:13]} Nc6 {[%clk 00:14:36]} {[%emt 00:00:05]} 9. Qd2
{[%clk 00:14:48]} {[%emt 00:00:14]} Bd7 {[%clk 00:14:25]} {[%emt 00:00:17]} 10.
Bb3 {[%clk 00:14:49]} {[%emt 00:00:04]} Qa5 {[%clk 00:14:13]} {[%emt 00:00:17]}
11. O-O-O {[%clk 00:13:55]} {[%emt 00:00:58]} Rfc8 {[%clk 00:14:04]} {[%emt
00:00:15]} 12. Kb1 {[%clk 00:13:22]} {[%emt 00:00:38]} Ne5 {[%clk 00:13:02]}
{[%emt 00:01:05]} 13. Rhe1 {[%clk 00:12:46]} {[%emt 00:00:40]} Nc4 {[%clk
00:12:52]} {[%emt 00:00:15]} 14. Bxc4 {[%clk 00:12:48]} {[%emt 00:00:04]} Rxc4
{[%clk 00:12:47]} {[%emt 00:00:10]} 15. Nb3 {[%clk 00:12:45]} {[%emt 00:00:08]}
Qc7 {[%clk 00:12:34]} {[%emt 00:00:18]} 16. Bd4 {[%clk 00:11:05]} {[%emt
00:01:45]} Be6 {[%clk 00:08:19]} {[%emt 00:04:21]} 17. g4 {[%clk 00:08:19]}
{[%emt 00:02:51]} a6 {[%clk 00:07:02]} {[%emt 00:01:22]} 18. g5 {[%clk
00:07:28]} {[%emt 00:00:55]} Nd7 {[%clk 00:06:29]} {[%emt 00:00:38]} 19. Bxg7
{[%clk 00:07:09]} {[%emt 00:00:24]} Kxg7 {[%clk 00:06:33]} 20. Nd5 {[%clk
00:05:37]} {[%emt 00:01:38]} Bxd5 {[%clk 00:06:20]} {[%emt 00:00:18]} 21. exd5
{[%clk 00:05:40]} {[%emt 00:00:02]} Ne5 {[%clk 00:04:49]} {[%emt 00:01:36]} 22.
Nd4 {[%clk 00:04:01]} {[%emt 00:01:43]} Kg8 {[%clk 00:03:32]} {[%emt 00:01:23]}
23. Re3 {[%clk 00:03:11]} {[%emt 00:00:53]} Rc8 {[%clk 00:03:27]} {[%emt
00:00:11]} 24. c3 {[%clk 00:03:02]} {[%emt 00:00:14]} b5 {[%clk 00:03:20]}
{[%emt 00:00:12]} 25. f4 {[%clk 00:02:53]} {[%emt 00:00:14]} Nd7 {[%clk
00:02:28]} {[%emt 00:00:56]} 26. Nc6 {[%clk 00:02:14]} {[%emt 00:00:45]} Rxc6
{[%clk 00:02:13]} {[%emt 00:00:20]} 27. dxc6 {[%clk 00:02:18]} {[%emt
00:00:01]} Qxc6 {[%clk 00:02:16]} {[%emt 00:00:02]} 28. Rxe7 {[%clk 00:02:13]}
{[%emt 00:00:09]} Nc5 {[%clk 00:01:30]} {[%emt 00:00:52]} 29. Qxd6 {[%clk
00:02:00]} {[%emt 00:00:19]} Qf3 {[%clk 00:01:27]} {[%emt 00:00:07]} 30. Rde1
{[%clk 00:01:53]} {[%emt 00:00:11]} Ne6 {[%clk 00:01:13]} {[%emt 00:00:19]} 31.
R7xe6 {[%clk 00:01:53]} {[%emt 00:00:06]} Rb8 {[%clk 00:00:00]} {[%emt
00:00:27]} 1-0

[Event "The Schackveckan 2023: Göteborg open"]
[Site "Göteborgs schackcentrum, Vegagatan 20, Gothenburg, Sweden"]
[Date "2023.08.11"]
[Round "3.5"]
[White "Sandberg, Lucas"]
[Black "Johansson, William"]
[Result "1-0"]
[TimeControl "15 minutes + 5 seconds per move from move one (Round 1 - 4) / 90 minutes + 30 seconds per move from move one (Round 5 - 8)"]
[WhiteFideId "1773712"]
[BlackFideId "1744070"]
[WhiteElo "1311"]
[BlackElo "2052"]

1. c4 {[%clk 00:15:07]} {[%emt 00:00:03]} Nf6 {[%clk 00:14:54]} {[%emt
00:00:16]} 2. Nc3 {[%clk 00:15:11]} {[%emt 00:00:01]} e6 {[%clk 00:14:58]}
{[%emt 00:00:02]} 3. d4 {[%clk 00:15:00]} {[%emt 00:00:16]} c5 {[%clk
00:15:01]} {[%emt 00:00:02]} 4. Nf3 {[%clk 00:14:59]} {[%emt 00:00:05]} cxd4
{[%clk 00:15:04]} {[%emt 00:00:02]} 5. Nxd4 {[%clk 00:15:04]} a6 {[%clk
00:14:59]} {[%emt 00:00:11]} 6. e4 {[%clk 00:15:04]} {[%emt 00:00:04]} Nc6
{[%clk 00:14:57]} {[%emt 00:00:07]} 7. Nxc6 {[%clk 00:14:50]} {[%emt 00:00:19]}
dxc6 {[%clk 00:14:36]} {[%emt 00:00:26]} 8. Qxd8+ {[%clk 00:14:54]} Kxd8 {[%clk
00:14:40]} {[%emt 00:00:02]} 9. e5 {[%clk 00:14:40]} {[%emt 00:00:18]} Nd7
{[%clk 00:14:40]} {[%emt 00:00:05]} 10. f4 {[%clk 00:14:44]} {[%emt 00:00:01]}
b5 {[%clk 00:14:23]} {[%emt 00:00:23]} 11. a3 {[%clk 00:14:39]} {[%emt
00:00:09]} Bc5 {[%clk 00:14:17]} {[%emt 00:00:10]} 12. Bd2 {[%clk 00:14:24]}
{[%emt 00:00:22]} Nb6 {[%clk 00:13:57]} {[%emt 00:00:24]} 13. O-O-O {[%clk
00:13:45]} {[%emt 00:00:44]} Kc7 {[%clk 00:13:36]} {[%emt 00:00:27]} 14. Ne4
{[%clk 00:13:45]} {[%emt 00:00:04]} Be7 {[%clk 00:13:37]} {[%emt 00:00:04]} 15.
Ba5 {[%clk 00:13:49]} {[%emt 00:00:01]} Kb7 {[%clk 00:13:05]} {[%emt 00:00:37]}
16. Nd6+ {[%clk 00:13:34]} {[%emt 00:00:20]} Bxd6 {[%clk 00:13:07]} {[%emt
00:00:04]} 17. exd6 {[%clk 00:13:38]} Bd7 {[%clk 00:12:52]} {[%emt 00:00:19]}
18. c5 {[%clk 00:13:03]} {[%emt 00:00:40]} Nd5 {[%clk 00:12:46]} {[%emt
00:00:11]} 19. Bd2 {[%clk 00:13:07]} {[%emt 00:00:01]} Rhe8 {[%clk 00:12:00]}
{[%emt 00:00:51]} 20. Re1 {[%clk 00:12:55]} {[%emt 00:00:17]} f6 {[%clk
00:09:16]} {[%emt 00:02:49]} 21. Bd3 {[%clk 00:12:42]} {[%emt 00:00:18]} g6
{[%clk 00:09:10]} {[%emt 00:00:11]} 22. h4 {[%clk 00:12:10]} {[%emt 00:00:37]}
e5 {[%clk 00:06:55]} {[%emt 00:02:21]} 23. fxe5 {[%clk 00:12:13]} {[%emt
00:00:02]} fxe5 {[%clk 00:06:36]} {[%emt 00:00:23]} 24. h5 {[%clk 00:12:17]}
{[%emt 00:00:02]} Bf5 {[%clk 00:06:38]} {[%emt 00:00:02]} 25. Bxf5 {[%emt
00:02:08]} gxf5 {[%clk 00:06:40]} {[%emt 00:00:02]} 26. Rhf1 {[%clk 00:10:20]}
f4 {[%clk 00:06:08]} {[%emt 00:00:37]} 27. g3 {[%clk 00:10:23]} e4 {[%clk
00:01:37]} {[%emt 00:04:37]} 28. Bxf4 {[%clk 00:09:58]} {[%emt 00:00:30]} Re6
{[%clk 00:00:33]} {[%emt 00:01:08]} 29. Bg5 {[%clk 00:09:49]} {[%emt 00:00:14]}
Rg8 {[%clk 00:00:08]} {[%emt 00:00:30]} 30. Rf7+ {[%clk 00:09:46]} {[%emt
00:00:08]} Kb8 {[%clk 00:00:06]} {[%emt 00:00:07]} 31. d7 {[%clk 00:09:44]}
{[%emt 00:00:07]} 1-0

[Event "The Schackveckan 2023: Göteborg open"]
[Site "Göteborgs schackcentrum, Vegagatan 20, Gothenburg, Sweden"]
[Date "2023.08.11"]
[Round "3.6"]
[White "Harila, Per"]
[Black "Pintaric, Felix"]
[Result "1-0"]
[TimeControl "15 minutes + 5 seconds per move from move one (Round 1 - 4) / 90 minutes + 30 seconds per move from move one (Round 5 - 8)"]
[WhiteFideId "1707248"]
[BlackFideId "1776096"]
[WhiteElo "2016"]
[BlackElo "1483"]

1. d4 {[%clk 00:15:07]} {[%emt 00:00:03]} Nf6 {[%clk 00:15:09]} {[%emt
00:00:02]} 2. c4 {[%clk 00:15:11]} {[%emt 00:00:02]} e6 {[%clk 00:15:12]}
{[%emt 00:00:01]} 3. Nc3 {[%clk 00:15:14]} {[%emt 00:00:02]} Bb4 {[%clk
00:15:16]} {[%emt 00:00:01]} 4. e3 {[%clk 00:15:17]} {[%emt 00:00:02]} O-O
{[%clk 00:15:17]} {[%emt 00:00:03]} 5. Bd3 {[%clk 00:15:20]} {[%emt 00:00:01]}
d5 {[%clk 00:15:18]} {[%emt 00:00:05]} 6. cxd5 {[%clk 00:15:12]} {[%emt
00:00:13]} exd5 {[%clk 00:15:15]} {[%emt 00:00:08]} 7. Nge2 {[%clk 00:15:15]}
{[%emt 00:00:02]} Re8 {[%clk 00:15:07]} {[%emt 00:00:14]} 8. O-O {[%clk
00:15:16]} {[%emt 00:00:04]} Bd6 {[%clk 00:14:52]} {[%emt 00:00:20]} 9. Nb5
{[%clk 00:14:48]} {[%emt 00:00:33]} Bf8 {[%clk 00:14:30]} {[%emt 00:00:26]} 10.
Qc2 {[%clk 00:14:31]} {[%emt 00:00:22]} c6 {[%clk 00:14:34]} {[%emt 00:00:01]}
11. Nbc3 {[%clk 00:14:35]} {[%emt 00:00:01]} Nbd7 {[%clk 00:13:40]} {[%emt
00:01:00]} 12. Ng3 {[%clk 00:14:21]} {[%emt 00:00:18]} Bd6 {[%clk 00:13:26]}
{[%emt 00:00:19]} 13. Bd2 {[%clk 00:14:04]} {[%emt 00:00:22]} Nb6 {[%clk
00:12:58]} {[%emt 00:00:34]} 14. Rae1 {[%clk 00:13:58]} {[%emt 00:00:10]} Qc7
{[%clk 00:12:06]} {[%emt 00:00:58]} 15. e4 {[%clk 00:13:24]} {[%emt 00:00:39]}
dxe4 {[%clk 00:12:01]} {[%emt 00:00:10]} 16. Ncxe4 {[%clk 00:13:14]} {[%emt
00:00:15]} Nbd5 {[%clk 00:11:39]} {[%emt 00:00:27]} 17. Nxf6+ {[%clk 00:12:46]}
{[%emt 00:00:33]} Nxf6 {[%clk 00:11:36]} {[%emt 00:00:09]} 18. Rxe8+ {[%clk
00:11:58]} {[%emt 00:00:52]} Nxe8 {[%clk 00:11:39]} {[%emt 00:00:02]} 19. Bxh7+
{[%clk 00:12:00]} {[%emt 00:00:03]} Kh8 {[%clk 00:11:40]} {[%emt 00:00:04]} 20.
Re1 {[%clk 00:11:25]} {[%emt 00:00:40]} Nf6 {[%clk 00:11:41]} {[%emt 00:00:04]}
21. Bf5 {[%clk 00:10:59]} {[%emt 00:00:25]} g6 {[%clk 00:10:38]} {[%emt
00:01:15]} 22. Bxc8 {[%clk 00:09:48]} {[%emt 00:01:15]} Rxc8 {[%clk 00:10:38]}
{[%emt 00:00:05]} 23. Bg5 {[%clk 00:09:23]} {[%emt 00:00:29]} Nd5 {[%clk
00:10:03]} {[%emt 00:00:42]} 24. Qe4 {[%clk 00:08:57]} {[%emt 00:00:29]} Kg7
{[%clk 00:09:37]} {[%emt 00:00:32]} 25. Qf3 {[%clk 00:07:59]} {[%emt 00:01:03]}
f6 {[%clk 00:09:02]} {[%emt 00:00:40]} 26. Bd2 {[%clk 00:07:40]} {[%emt
00:00:24]} Rd8 {[%clk 00:08:29]} {[%emt 00:00:39]} 27. Qg4 {[%clk 00:07:23]}
{[%emt 00:00:21]} Ne7 {[%clk 00:07:47]} {[%emt 00:00:48]} 28. Nh5+ {[%clk
00:06:53]} {[%emt 00:00:33]} Kf7 {[%clk 00:07:40]} {[%emt 00:00:15]} 29. Qe6+
{[%clk 00:06:49]} 1-0